bitfinex-derivatives/quotes_SOLF0:USTF0_20220104
["timestamp","ask_amount","ask_price","bid_price","bid_amount"]
[1641311502246,3.0,172.38,172.32,1.61478974]
[1641311502448,5.47841666,172.38,172.3,1.61478974]
[1641311502649,62.768,172.37,172.3,1.61478974]
[1641311503949,56.20647086,172.37,172.3,1.61478974]
[1641311504149,27.66479,172.39,172.3,1.61478974]
[1641311504349,27.66479,172.39,172.3,6.92778974]
[1641311504550,30.66479,172.39,172.3,6.92778974]
[1641311504851,30.66479,172.39,172.33,12.31258963]
[1641311505551,2.53550731,172.38,172.33,12.31258963]
[1641311507053,5.53550731,172.38,172.33,12.31258963]
[1641311507253,2.53550731,172.38,172.33,12.31258963]
[1641311507453,27.66479,172.35,172.32,12.31258963]
[1641311508954,27.66479,172.35,172.32,16.31258963]
[1641311509154,100.12165488,172.39,172.32,16.31258963]
[1641311509354,39.97015488,172.39,172.32,20.59858963]
[1641311509554,7.70375488,172.39,172.35,4.0]
[1641311509754,40.5355769,172.43,172.35,16.31258963]
[1641311509957,7.70375488,172.43,172.35,16.31258963]
[1641311510758,32.83182202,172.47,172.35,4.0]
[1641311510961,123.64803485,172.69,172.36,1.61478974]
[1641311510962,2.44260519,172.46,172.36,1.61478974]
[1641311511160,2.44260519,172.46,172.36,7.66478974]
[1641311511359,5.44260519,172.46,172.36,7.66478974]
[1641311511561,33.10739519,172.46,172.36,7.66478974]
[1641311511760,30.66479,172.46,172.37,32.83182202]
[1641311511959,27.66479,172.46,172.37,32.83182202]
[1641311512161,30.66479,172.46,172.37,94.73372202]
[1641311512559,27.66479,172.46,172.37,98.73372202]
[1641311512760,2.44260519,172.45,172.38,8.67907481]
[1641311513361,27.66479,172.46,172.38,8.67907481]
[1641311513563,3.0,172.47,172.39,1.61478974]
[1641311513963,3.0,172.48,172.39,1.61478974]
[1641311514262,2.53337123,172.46,172.39,8.67907481]
[1641311514962,2.53337123,172.47,172.4,1.61478974]
[1641311515162,2.53337123,172.47,172.4,6.48278974]
[1641311515662,2.53337123,172.47,172.41,1.61478974]
[1641311518366,3.0,172.48,172.41,1.61478974]
[1641311519266,2.4858943,172.47,172.41,1.61478974]
[1641311521570,3.0,172.45,172.41,1.61478974]
[1641311521770,2.4858943,172.47,172.41,1.61478974]
[1641311522373,5.4858943,172.47,172.41,1.61478974]
[1641311522774,3.0,172.46,172.41,1.61478974]
[1641311523277,3.0,172.47,172.41,1.61478974]
[1641311523475,3.0,172.45,172.41,1.61478974]
[1641311523878,60.5657,172.5,172.42,4.0]
[1641311524176,27.66479,172.52,172.42,9.039]
[1641311524376,2.49115541,172.49,172.43,1.61478974]
[1641311524576,2.49115541,172.49,172.45,4.0]
[1641311525178,3.0,172.53,172.46,1.61478974]
[1641311525377,3.0,172.53,172.46,8.12778974]
[1641311525580,3.0,172.53,172.46,35.79257974]
[1641311525980,3.0,172.53,172.47,1.61478974]
[1641311526480,60.8515,172.54,172.47,1.61478974]
[1641311526680,3.0,172.55,172.47,1.61478974]
[1641311527081,3.0,172.54,172.47,8.67907481]
[1641311527481,3.0,172.55,172.47,8.67907481]
[1641311528481,27.66479,172.56,172.47,8.67907481]
[1641311528683,3.0,172.5,172.47,8.67907481]
[1641311528883,3.0,172.49,172.47,8.67907481]
[1641311529282,5.4909206,172.49,172.47,1.61478974]
[1641311529482,3.0,172.48,172.47,1.61478974]
[1641311529981,3.0,172.48,172.44,33.0626618]
[1641311530182,3.0,172.47,172.44,33.0626618]
[1641311530883,3.0,172.48,172.39,60.49661202]
[1641311531187,3.0,172.48,172.39,27.66479]
[1641311531684,3.0,172.48,172.4,6.9782717]
[1641311532784,60.1807,172.49,172.4,6.9782717]
[1641311532986,3.0,172.48,172.4,6.9782717]
[1641311533384,60.1807,172.49,172.4,6.9782717]
[1641311533585,27.66479,172.47,172.4,6.9782717]
[1641311536189,27.66479,172.47,172.41,4.0]
[1641311536389,27.66479,172.47,172.41,10.234]
[1641311536591,57.1807,172.49,172.41,10.234]
[1641311537190,57.1807,172.49,172.48,4.09847571]
[1641311537391,32.83182202,172.56,172.48,4.09847571]
[1641311537997,32.83182202,172.56,172.51,4.09847571]
[1641311538194,30.66479,172.57,172.51,4.09847571]
[1641311538394,3.0,172.56,172.51,4.09847571]
[1641311538794,3.0,172.56,172.53,4.09847571]
[1641311539397,30.66479,172.57,172.53,4.09847571]
[1641311539597,27.66479,172.57,172.53,4.09847571]
[1641311540196,39.95649259,172.57,172.53,4.09847571]
[1641311540596,42.95649259,172.57,172.53,4.09847571]
[1641311540797,39.95649259,172.57,172.53,4.09847571]
[1641311540997,42.95649259,172.57,172.53,4.09847571]
[1641311541795,3.0,172.56,172.53,4.09847571]
[1641311542798,15.29170259,172.56,172.53,4.09847571]
[1641311543599,3.0,172.56,172.46,8.09847571]
[1641311544399,3.0,172.55,172.46,8.09847571]
[1641311544900,3.0,172.54,172.46,4.09847571]
[1641311545099,3.0,172.55,172.46,4.09847571]
[1641311545299,3.0,172.55,172.46,8.46]
[1641311545700,3.0,172.56,172.46,8.46]
[1641311546299,3.0,172.55,172.46,8.46]
[1641311547400,3.0,172.53,172.46,8.46]
[1641311547600,3.0,172.55,172.46,8.46]
[1641311547802,27.66479,172.57,172.46,8.46]
[1641311548002,30.66479,172.57,172.49,4.09847571]
[1641311548201,12.29170259,172.53,172.49,4.09847571]
[1641311549001,15.29170259,172.54,172.5,4.09847571]
[1641311549903,42.95649259,172.54,172.5,4.09847571]
[1641311550304,39.95649259,172.54,172.5,4.09847571]
[1641311552106,27.66479,172.54,172.51,4.09847571]
[1641311552708,42.95649259,172.54,172.51,4.09847571]
[1641311552908,39.95649259,172.54,172.51,4.09847571]
[1641311553811,27.66479,172.54,172.51,4.09847571]
[1641311555512,3.0,172.53,172.51,4.09847571]
[1641311555911,27.66479,172.54,172.51,4.09847571]
[1641311556112,3.0,172.53,172.51,4.09847571]
[1641311556514,12.29170259,172.52,172.48,4.09847571]
[1641311556713,77.00250259,172.52,172.48,4.09847571]
[1641311557113,15.29170259,172.52,172.48,4.09847571]
[1641311558119,27.66479,172.51,172.48,4.09847571]
[1641311559222,39.95649259,172.51,172.47,4.09847571]
[1641311560124,42.95649259,172.51,172.47,4.09847571]
[1641311560723,39.95649259,172.51,172.47,4.09847571]
[1641311560922,12.29170259,172.51,172.47,4.09847571]
[1641311561121,92.22282202,172.55,172.48,4.09847571]
[1641311561122,12.29170259,172.52,172.48,4.09847571]
[1641311561923,12.29170259,172.52,172.49,4.09847571]
[1641311562725,12.29170259,172.52,172.48,4.09847571]
[1641311563524,30.66479,172.54,172.46,9.88147571]
[1641311564123,39.95649259,172.54,172.46,9.88147571]
[1641311564526,42.95649259,172.54,172.46,9.88147571]
[1641311564725,39.95649259,172.54,172.46,9.88147571]
[1641311565230,27.66479,172.54,172.46,9.88147571]
[1641311567530,30.66479,172.54,172.46,4.09847571]
[1641311567732,27.66479,172.54,172.46,4.09847571]
[1641311568031,39.95649259,172.54,172.46,4.09847571]
[1641311568631,27.66479,172.54,172.46,4.09847571]
[1641311569430,39.95649259,172.54,172.46,4.09847571]
[1641311570433,2.49735693,172.53,172.46,5.68528357]
[1641311571433,5.49735693,172.53,172.46,5.68528357]
[1641311571633,5.49735693,172.53,172.45,8.27447571]
[1641311572333,2.49735693,172.52,172.45,8.27447571]
[1641311573334,2.49735693,172.52,172.45,4.176]
[1641311573634,2.49735693,172.52,172.44,4.09847571]
[1641311574038,12.29170259,172.51,172.47,4.09847571]
[1641311574237,12.29170259,172.51,172.47,10.20047571]
[1641311574737,2.49735693,172.52,172.47,10.20047571]
[1641311574939,5.49735693,172.52,172.47,10.20047571]
[1641311575138,2.49735693,172.52,172.47,10.20047571]
[1641311575342,5.49735693,172.52,172.47,10.20047571]
[1641311575540,3.0,172.51,172.47,10.20047571]
[1641311575740,14.79308404,172.51,172.47,10.20047571]
[1641311576240,27.66479,172.5,172.47,10.20047571]
[1641311576440,39.96051711,172.5,172.47,6.102]
[1641311576639,39.96051711,172.5,172.46,4.09847571]
[1641311577042,2.49735693,172.49,172.46,4.09847571]
[1641311577241,5.49735693,172.49,172.46,4.09847571]
[1641311577443,2.49735693,172.49,172.46,4.09847571]
[1641311577641,27.66479,172.5,172.46,4.09847571]
[1641311577847,12.29764625,172.48,172.44,4.09847571]
[1641311578743,15.29764625,172.48,172.44,4.09847571]
[1641311578945,12.29764625,172.48,172.44,4.09847571]
[1641311579145,2.50723618,172.47,172.44,4.09847571]
[1641311580147,42.96243625,172.47,172.44,4.09847571]
[1641311580650,30.66479,172.47,172.44,4.09847571]
[1641311580851,2.50726595,172.46,172.43,4.09847571]
[1641311581250,27.66479,172.47,172.43,4.09847571]
[1641311581451,34.74309247,172.47,172.4,4.09847571]
[1641311581650,3.0,172.46,172.4,4.09847571]
[1641311582052,27.66479,172.43,172.4,4.09847571]
[1641311582252,27.66479,172.43,172.39,5.690661]
[1641311582953,21.10519297,172.43,172.38,5.690661]
[1641311583254,21.10519297,172.43,172.38,4.09847571]
[1641311583954,21.10519297,172.43,172.38,5.62362038]
[1641311584154,70.1906032,172.45,172.38,5.62362038]
[1641311584553,3.0,172.44,172.38,5.62362038]
[1641311584753,3.0,172.44,172.38,4.09847571]
[1641311585555,70.1906032,172.45,172.38,4.09847571]
[1641311585757,4.0786032,172.44,172.37,5.62362038]
[1641311586256,27.66479,172.43,172.37,5.62362038]
[1641311586656,67.1906032,172.45,172.37,5.62362038]
[1641311586858,67.1906032,172.45,172.37,10.32762038]
[1641311587356,67.1906032,172.45,172.38,5.62362038]
[1641311590061,67.1906032,172.45,172.38,4.09847571]
[1641311590465,70.1906032,172.45,172.38,4.09847571]
[1641311590761,3.0,172.44,172.38,4.09847571]
[1641311590962,7.0786032,172.44,172.37,5.62362038]
[1641311591661,4.0786032,172.44,172.36,69.54887571]
[1641311592563,4.0786032,172.44,172.37,5.6235438]
[1641311592763,7.0786032,172.44,172.37,5.6235438]
[1641311593164,7.0786032,172.44,172.36,69.54887571]
[1641311594467,7.0786032,172.44,172.38,4.09847571]
[1641311594667,4.0786032,172.42,172.38,4.09847571]
[1641311596669,4.0786032,172.43,172.39,4.09847571]
[1641311597870,7.0786032,172.43,172.39,4.09847571]
[1641311598272,34.7433932,172.43,172.39,4.09847571]
[1641311598773,4.0786032,172.42,172.38,4.09847571]
[1641311599974,31.7433932,172.43,172.39,4.09847571]
[1641311600674,34.7433932,172.43,172.39,4.09847571]
[1641311601275,4.0786032,172.42,172.38,4.09847571]
[1641311601477,7.0786032,172.42,172.38,4.09847571]
[1641311601874,3.0,172.41,172.38,4.09847571]
[1641311603178,4.0786032,172.4,172.36,4.09847571]
[1641311604778,7.0786032,172.41,172.36,4.09847571]
[1641311605177,4.0786032,172.41,172.36,4.09847571]
[1641311605376,4.0786032,172.4,172.36,4.09847571]
[1641311606579,4.0786032,172.41,172.37,4.09847571]
[1641311611483,2.55913585,172.42,172.39,4.09847571]
[1641311614389,14.79404325,172.42,172.38,4.09847571]
[1641311615290,5.55913585,172.42,172.37,4.09847571]
[1641311615489,10.27113585,172.42,172.37,4.09847571]
[1641311615888,2.55913585,172.41,172.37,4.09847571]
[1641311616390,27.66479,172.4,172.37,4.09847571]
[1641311617991,27.66479,172.4,172.36,4.09847571]
[1641311619292,3.0,172.39,172.36,4.09847571]
[1641311619495,3.0,172.39,172.36,7.571e-05]
[1641311619696,27.66479,172.4,172.36,7.571e-05]
[1641311620097,27.66479,172.4,172.32,12.29170259]
[1641311620295,27.66479,172.36,172.3,12.29170259]
[1641311621098,27.66479,172.36,172.3,1.49326773]
[1641311623001,39.8996974,172.4,172.31,4.0]
[1641311623202,39.8996974,172.4,172.32,3.0]
[1641311623403,39.8996974,172.4,172.31,5.671]
[1641311623605,2.60415994,172.39,172.33,1.49326773]
[1641311623804,54.70785994,172.39,172.33,1.49326773]
[1641311624304,2.60415994,172.38,172.32,12.29170259]
[1641311625707,2.60415994,172.39,172.32,12.29170259]
[1641311626607,2.60415994,172.39,172.33,12.29170259]
[1641311627307,2.60415994,172.39,172.32,12.29170259]
[1641311629308,5.60415994,172.39,172.32,12.29170259]
[1641311629606,2.60415994,172.39,172.32,12.29170259]
[1641311631410,12.2349074,172.38,172.3,20.50802089]
[1641311632610,27.66479,172.37,172.3,20.50802089]
[1641311633211,2.60415994,172.36,172.3,20.50802089]
[1641311633409,3.0,172.34,172.3,20.50802089]
[1641311633609,2.60415994,172.36,172.3,20.50802089]
[1641311633810,2.60415994,172.36,172.3,1.49326773]
[1641311634008,5.60415994,172.36,172.3,1.49326773]
[1641311634210,2.60415994,172.36,172.3,1.49326773]
[1641311634410,56.57555994,172.36,172.3,1.49326773]
[1641311634610,27.66479,172.34,172.3,1.49326773]
[1641311634810,27.66479,172.34,172.28,1.49326773]
[1641311635310,27.66479,172.34,172.27,59.1925]
[1641311635510,27.66479,172.34,172.27,56.1925]
[1641311636015,27.66479,172.34,172.27,52.1925]
[1641311636216,27.66479,172.34,172.28,1.48687574]
[1641311637214,27.66479,172.34,172.27,52.1925]
[1641311639215,34.02679,172.34,172.27,52.1925]
[1641311640315,6.362,172.34,172.27,52.1925]
[1641311640519,53.9714,172.36,172.27,52.1925]
[1641311640919,53.9714,172.36,172.28,1.48685364]
[1641311642818,53.9714,172.36,172.27,52.1925]
[1641311644219,56.9714,172.36,172.27,52.1925]
[1641311644418,3.0,172.35,172.27,52.1925]
[1641311644619,27.66479,172.34,172.27,52.1925]
[1641311645321,30.66479,172.34,172.27,52.1925]
[1641311645520,27.66479,172.34,172.27,52.1925]
[1641311645919,27.66479,172.34,172.28,1.49587265]
[1641311645920,30.27021311,172.34,172.28,1.49587265]
[1641311646622,2.60572365,172.33,172.28,1.49587265]
[1641311646823,9.05972365,172.33,172.28,1.49587265]
[1641311647124,6.454,172.33,172.28,1.49587265]
[1641311647725,2.60580253,172.32,172.26,20.51080832]
[1641311648126,30.66479,172.34,172.26,20.51080832]
[1641311648327,30.66479,172.34,172.26,12.29170259]
[1641311648729,27.66479,172.31,172.26,12.29170259]
[1641311649829,2.6061309,172.3,172.25,20.51080832]
[1641311650329,30.66479,172.31,172.25,1.49587265]
[1641311651432,21.10176653,172.31,172.25,1.49587265]
[1641311653433,24.10176653,172.31,172.25,1.49587265]
[1641311654534,21.10176653,172.31,172.25,1.49587265]
[1641311654935,3.0,172.3,172.25,1.49587265]
[1641311655134,3.0,172.29,172.25,1.49587265]
[1641311655334,3.0,172.29,172.24,1.49587265]
[1641311655535,6.638,172.3,172.24,1.49587265]
[1641311656138,2.65860746,172.29,172.23,1.49587265]
[1641311656737,6.638,172.3,172.23,1.49587265]
[1641311658042,2.65857351,172.29,172.23,1.49587265]
[1641311658738,27.66479,172.28,172.23,1.49587265]
[1641311660040,27.66479,172.28,172.22,1.49587265]
[1641311660441,30.66479,172.28,172.22,1.49587265]
[1641311661842,27.66479,172.28,172.22,1.49587265]
[1641311663146,27.66479,172.28,172.21,1.49587265]
[1641311664448,2.66608,172.27,172.21,13.78757524]
[1641311664847,5.66608,172.27,172.21,13.78757524]
[1641311665047,3.0,172.26,172.21,13.78757524]
[1641311665749,2.66608,172.27,172.21,13.78757524]
[1641311665948,2.66608,172.25,172.21,1.49587265]
[1641311666549,5.998,172.25,172.21,1.49587265]
[1641311671155,5.998,172.25,172.19,1.49587265]
[1641311671655,3.0,172.27,172.19,1.49587265]
[1641311671856,3.0,172.26,172.2,1.49587265]
[1641311672055,9.588,172.26,172.2,1.49587265]
[1641311672258,9.588,172.26,172.21,1.49587265]
[1641311673458,3.0,172.23,172.21,1.49587265]
[1641311673858,3.0,172.22,172.21,1.49587265]
[1641311674059,3.0,172.22,172.17,12.29170259]
[1641311674060,7.117,172.22,172.17,12.29170259]
[1641311674259,4.117,172.22,172.17,12.29170259]
[1641311674460,7.117,172.22,172.17,12.29170259]
[1641311674660,7.117,172.22,172.16,1.42946401]
[1641311675261,27.66479,172.21,172.16,1.42946401]
[1641311675861,30.66479,172.21,172.16,1.42946401]
[1641311676062,3.0,172.19,172.16,1.42946401]
[1641311676261,27.66479,172.21,172.13,1.42946401]
[1641311676461,30.66479,172.21,172.13,1.42946401]
[1641311676759,3.0,172.2,172.13,1.42946401]
[1641311677159,3.0,172.2,172.12,13.7211666]
[1641311677362,27.66479,172.17,172.12,13.7211666]
[1641311677562,34.02179,172.17,172.12,13.7211666]
[1641311677761,34.02179,172.17,172.12,12.29170259]
[1641311677960,6.357,172.17,172.12,12.29170259]
[1641311678864,27.66479,172.21,172.12,12.29170259]
[1641311680165,4.10397541,172.2,172.16,12.29170259]
[1641311680364,3.0,172.17,172.12,32.83182202]
[1641311680569,3.0,172.14,172.12,32.83182202]
[1641311680769,3.0,172.14,172.12,2.202e-05]
[1641311681168,3.0,172.14,172.1,6.53433126]
[1641311681369,27.66479,172.11,172.1,6.53433126]
[1641311681568,33.84479,172.11,172.1,6.53433126]
[1641311682470,10.28584657,172.11,172.1,6.53433126]
[1641311682671,4.10584657,172.11,172.06,1.43595388]
[1641311683871,4.10584657,172.11,172.02,53.5002]
[1641311683872,4.10584657,172.11,172.02,71.93720658]
[1641311684273,4.10584657,172.11,172.03,3.0]
[1641311684472,4.10584657,172.12,172.03,26.29600658]
[1641311684672,4.10584657,172.12,172.04,3.0]
[1641311685173,27.66479,172.14,172.04,3.0]
[1641311685174,31.77063657,172.14,172.04,3.0]
[1641311685373,31.77063657,172.14,172.05,1.43595388]
[1641311685775,4.10584657,172.13,172.05,1.43595388]
[1641311686376,4.10584657,172.13,172.05,4.43595388]
[1641311686877,4.10584657,172.13,172.06,3.0]
[1641311687076,4.10584657,172.12,172.06,4.43595388]
[1641311687276,4.10584657,172.12,172.06,1.43595388]
[1641311688277,4.10584657,172.13,172.07,1.43595388]
[1641311688981,4.10584657,172.12,172.08,1.43595388]
[1641311689583,4.10584657,172.13,172.09,1.43595388]
[1641311690382,4.10584657,172.13,172.1,1.43595388]
[1641311690882,4.10584657,172.13,172.11,1.43595388]
[1641311691983,27.66479,172.14,172.05,27.66479]
[1641311693684,27.66479,172.14,172.05,30.66479]
[1641311694486,27.66479,172.14,172.05,27.66479]
[1641311696085,27.66479,172.14,172.04,4.06232343]
[1641311696490,27.66479,172.14,172.03,7.06232343]
[1641311697090,27.66479,172.14,172.04,4.06232343]
[1641311697291,27.66479,172.14,172.04,5.32244939]
[1641311699192,27.66479,172.14,172.12,4.06232343]
[1641311699394,2.83189244,172.13,172.12,4.06232343]
[1641311702796,2.83189244,172.13,172.11,4.06232343]
[1641311702996,5.83189244,172.13,172.11,4.06232343]
[1641311703395,2.83189244,172.13,172.11,4.06232343]
[1641311703597,2.83189244,172.12,172.1,4.06232343]
[1641311704197,2.83189244,172.13,172.11,4.06232343]
[1641311705298,2.83189244,172.13,172.1,4.06232343]
[1641311706699,2.83189244,172.13,172.09,4.06232343]
[1641311709403,13.12442242,172.13,172.07,4.06232343]
[1641311709601,3.0,172.12,172.07,4.06232343]
[1641311710104,16.12442242,172.13,172.08,4.06232343]
[1641311711302,12.32021841,172.1,172.06,4.06232343]
[1641311711702,15.32021841,172.1,172.06,4.06232343]
[1641311711902,15.32021841,172.1,172.02,19.71382348]
[1641311712103,2.83189244,172.1,172.07,4.10666244]
[1641311712503,30.49668244,172.1,172.07,4.10666244]
[1641311712803,39.98477732,172.1,172.02,19.71382348]
[1641311713005,39.98477732,172.1,172.06,4.10677508]
[1641311713705,27.66479,172.1,172.02,19.71382348]
[1641311713907,15.154385,172.09,172.05,4.10693391]
[1641311714709,27.66479,172.1,172.01,12.55598077]
[1641311715408,3.0,172.09,172.01,8.48]
[1641311715608,3.0,172.08,172.01,8.48]
[1641311716210,31.74077077,172.1,172.01,9.20044224]
[1641311716612,27.66479,172.07,172.01,8.48]
[1641311720319,27.66479,172.07,172.02,0.72044224]
[1641311721618,27.66479,172.07,172.02,5.39444224]
[1641311722118,4.07598077,172.04,172.03,1.27338201]
[1641311723719,2.83339504,172.06,172.03,1.27338201]
[1641311723920,2.83339504,172.06,172.03,6.70938201]
[1641311724520,2.83339504,172.06,172.03,5.436]
[1641311725221,2.83339504,172.06,172.03,6.15644224]
[1641311725420,4.10699675,172.04,172.03,6.15644224]
[1641311726023,2.83339504,172.06,172.03,7.42974083]
[1641311726626,2.83339504,172.06,172.03,6.15644224]
[1641311727026,2.83339504,172.06,172.03,5.436]
[1641311727227,2.83339504,172.06,172.03,0.72044224]
[1641311727427,2.83339504,172.06,172.01,8.48]
[1641311728227,2.83339504,172.06,172.01,9.20044224]
[1641311728628,27.66479,172.03,171.99,12.32021841]
[1641311728829,27.66479,172.03,171.98,0.72044224]
[1641311728830,4.10719128,172.02,171.98,12.32021841]
[1641311729028,8.57119128,172.02,171.98,13.04066065]
[1641311729430,8.57119128,172.02,172.01,0.72044224]
[1641311729830,4.10719128,172.01,171.97,12.32021841]
[1641311730231,4.10719128,172.01,171.99,0.72044224]
[1641311730432,4.10719128,172.01,171.97,12.32021841]
[1641311731032,4.10719128,172.01,171.99,0.72044224]
[1641311731234,4.10719128,172.01,172.0,0.72044224]
[1641311731436,2.83448341,172.01,172.0,0.72044224]
[1641311731637,2.83448341,172.01,171.96,12.32021841]
[1641311731836,2.83448341,172.01,171.99,0.72044224]
[1641311732035,2.83448341,172.03,171.99,0.72044224]
[1641311732634,2.83448341,172.03,171.98,0.72044224]
[1641311732835,12.22794231,172.02,171.95,18.4537424]
[1641311733035,18.39594231,172.02,171.97,0.72044224]
[1641311733236,20.67550007,172.02,171.95,18.4537424]
[1641311733437,18.39594231,172.02,171.95,18.4537424]
[1641311734237,18.39594231,172.02,171.95,19.17418464]
[1641311734438,18.39594231,172.02,171.95,18.4537424]
[1641311734839,39.89273231,172.0,171.95,0.72044224]
[1641311735338,39.89273231,172.0,171.98,0.72044224]
[1641311735739,2.83448341,171.99,171.93,18.4537424]
[1641311735939,2.83448341,171.99,171.95,0.72044224]
[1641311736339,2.83448341,171.99,171.96,0.72044224]
[1641311736540,2.83448341,171.99,171.93,18.4537424]
[1641311736740,2.83448341,171.99,171.96,0.72044224]
[1641311736943,2.83448341,171.99,171.95,0.72044224]
[1641311737342,2.83448341,171.99,171.97,4.10855654]
[1641311737946,2.27955776,171.99,171.92,54.26434224]
[1641311738142,2.27955776,171.98,171.91,93.82899878]
[1641311738541,2.27955776,171.98,171.91,93.10855654]
[1641311738742,27.66479,171.96,171.91,93.10855654]
[1641311738943,27.66479,171.96,171.92,0.72044224]
[1641311739545,27.66479,171.96,171.9,0.72044224]
[1641311739743,27.66479,171.96,171.88,36.20479]
[1641311739744,33.47379,171.96,171.88,27.66479]
[1641311739945,33.47379,171.96,171.9,0.72044224]
[1641311740145,33.47379,171.96,171.88,27.66479]
[1641311740344,54.2725,171.95,171.93,0.72044224]
[1641311740544,27.66479,171.96,171.93,0.72044224]
[1641311740844,27.66479,171.96,171.91,0.72044224]
[1641311741045,27.66479,171.96,171.88,31.77334654]
[1641311741245,27.66479,171.96,171.91,0.72044224]
[1641311742046,27.66479,171.96,171.88,31.77334654]
[1641311742245,34.04379,171.96,171.9,0.72044224]
[1641311742645,34.04379,171.96,171.88,31.77334654]
[1641311742846,34.04379,171.96,171.88,0.72044224]
[1641311743046,2.27955776,171.94,171.88,0.72044224]
[1641311743246,2.27955776,171.94,171.87,4.10855654]
[1641311743447,2.27955776,171.94,171.88,0.72044224]
[1641311743845,52.4851,171.95,171.88,0.72044224]
[1641311744345,52.4851,171.95,171.89,0.72044224]
[1641311744548,54.76465776,171.95,171.83,4.10855654]
[1641311744749,27.66479,171.84,171.83,6.1339094]
[1641311745048,32.46579,171.84,171.83,6.1339094]
[1641311745847,32.46579,171.84,171.79,1.27239462]
[1641311745848,35.30366465,171.84,171.79,1.27239462]
[1641311746047,2.83787465,171.84,171.83,0.72044224]
[1641311746248,2.83787465,171.84,171.79,1.27239462]
[1641311746448,2.83787465,171.84,171.79,1.99283686]
[1641311746648,2.83787465,171.84,171.81,0.72044224]
[1641311746847,27.66479,171.82,171.81,0.72044224]
[1641311747249,27.66479,171.82,171.78,1.27239462]
[1641311747547,27.66479,171.82,171.81,0.72044224]
[1641311747749,31.77598491,171.85,171.81,0.72044224]
[1641311748149,31.77598491,171.85,171.78,4.27239462]
[1641311748350,27.66479,171.85,171.84,0.72044224]
[1641311748549,27.66479,171.85,171.82,1.27239462]
[1641311749351,34.40479,171.85,171.79,0.72044224]
[1641311749552,90.81629,171.85,171.76,1.27239462]
[1641311750252,90.81629,171.85,171.79,0.72044224]
[1641311750454,12.22794231,171.84,171.83,0.72044224]
[1641311751157,12.22794231,171.84,171.81,0.72044224]
[1641311751452,84.07629,171.85,171.74,16.08630402]
[1641311751453,84.07629,171.85,171.74,57.64300246]
[1641311751652,84.07629,171.85,171.82,0.72044224]
[1641311751852,84.07629,171.85,171.75,3.0]
[1641311752054,96.30423231,171.85,171.76,3.0]
[1641311752252,96.30423231,171.85,171.74,17.8139094]
[1641311752453,102.82823231,171.85,171.79,0.72044224]
[1641311752654,102.82823231,171.85,171.74,17.8139094]
[1641311752853,102.82823231,171.85,171.81,0.72044224]
[1641311753354,12.22794231,171.83,171.81,0.72044224]
[1641311753552,12.22794231,171.83,171.76,3.0]
[1641311753753,12.22794231,171.83,171.81,0.72044224]
[1641311753954,12.22794231,171.84,171.81,0.72044224]
[1641311754657,12.22794231,171.83,171.74,14.8139094]
[1641311754855,27.66479,171.82,171.8,0.72044224]
[1641311755057,12.22794231,171.83,171.81,0.72044224]
[1641311755255,12.22794231,171.84,171.82,0.72044224]
[1641311755455,12.22794231,171.84,171.78,3.0]
[1641311755654,12.22794231,171.84,171.83,0.72044224]
[1641311756157,84.07629,171.85,171.79,1.27231839]
[1641311756355,84.07629,171.85,171.81,0.72044224]
[1641311756558,84.07629,171.85,171.84,0.72044224]
[1641311756756,84.07629,171.85,171.82,0.72044224]
[1641311756956,84.07629,171.85,171.82,1.27231839]
[1641311757558,12.22794231,171.84,171.75,1.27231839]
[1641311757960,17.37194231,171.84,171.78,0.72044224]
[1641311758162,17.37194231,171.84,171.79,0.72044224]
[1641311758460,5.144,171.84,171.79,0.72044224]
[1641311758762,27.66479,171.82,171.75,1.27231839]
[1641311759061,27.66479,171.82,171.81,0.72044224]
[1641311759261,27.66479,171.82,171.8,0.72044224]
[1641311759461,27.66479,171.82,171.75,4.27231839]
[1641311759662,27.66479,171.82,171.81,0.72044224]
[1641311759862,27.66479,171.82,171.75,1.27231839]
[1641311760264,27.66479,171.82,171.81,0.72044224]
[1641311760969,27.66479,171.82,171.81,5.38460424]
[1641311761166,27.66479,171.82,171.81,6.10504648]
[1641311761371,27.66479,171.82,171.81,5.38460424]
[1641311761768,27.66479,171.82,171.8,4.11236338]
[1641311762367,27.66479,171.82,171.8,5.38457342]
[1641311763069,32.87979,171.82,171.8,5.38457342]
[1641311763469,32.87979,171.82,171.79,4.11236338]
[1641311764067,27.66479,171.82,171.79,4.11236338]
[1641311764669,2.84057443,171.81,171.79,4.11236338]
[1641311765369,2.84057443,171.81,171.79,4.83280562]